fUSD/lending_fUSD_20240907
["ID","MTS","AMOUNT","RATE_DAILY","PERIOD"]
[337510701,1725726668733,-1006.89,0.0001499,2]
[337510702,1725726668743,-1274.16,0.0001499,2]
[337510703,1725726668752,-531.59,0.0001499,2]
[337510704,1725726668762,-500.0,0.00014991,2]
[337510705,1725726668772,-1006.89,0.00014994,2]
[337510706,1725726668784,-1274.16,0.00014994,2]
[337510707,1725726668795,-531.59,0.00014994,2]
[337510708,1725726668805,-531.59,0.00014994,2]
[337510709,1725726668815,-531.59,0.00014994,2]
[337510710,1725726668825,-1274.16,0.00014995,2]
[337510711,1725726668834,-1006.89,0.00014995,2]
[337510712,1725726668844,-1274.16,0.00014995,2]
[337510713,1725726668854,-1006.89,0.00014995,2]
[337510714,1725726668863,-531.59,0.00014995,2]
[337510715,1725726668873,-531.59,0.00014995,2]
[337510716,1725726668882,-531.59,0.00014995,2]
[337510717,1725726668892,-531.59,0.00014995,2]
[337510718,1725726668901,-531.59,0.00014995,2]
[337510719,1725726668910,-531.59,0.00014995,2]
[337510720,1725726668919,-531.59,0.00014995,2]
[337510721,1725726668928,-531.59,0.00014995,2]
[337510722,1725726668940,-531.59,0.00014995,2]
[337510723,1725726668950,-531.59,0.00014995,2]
[337510724,1725726668960,-500.0,0.00014996,2]
[337510725,1725726668969,-159.29459686,0.00014996,2]
[337510726,1725726668994,-676.84,0.00014794,2]
[337510727,1725726669004,-1114.86540314,0.00014996,2]
[337510728,1725726669013,-1006.89,0.00014996,2]
[337510729,1725726669023,-1274.16,0.00014996,2]
[337510730,1725726669032,-1006.89,0.00014996,2]
[337510731,1725726669042,-809.5505672,0.00014996,2]
[337510732,1725726700090,50000.0,0.00031304,30]
[337510733,1725726705268,50000.0,0.00031304,31]
[337510734,1725726708896,50000.0,0.00031338,32]
[337510735,1725726712187,50000.0,0.00031338,33]
[337510736,1725726715581,50000.0,0.00031338,34]
[337510737,1725726718886,50000.0,0.00031338,35]
[337510738,1725726722173,50000.0,0.00031338,36]
[337510739,1725726725988,50000.0,0.00031338,37]
[337510740,1725726729810,50000.0,0.00031338,38]
[337510741,1725726733551,50000.0,0.00031338,39]
[337510747,1725727035110,750.0,0.00011,2]
[337510748,1725727131459,535.75,0.00011893,2]
[337510749,1725727168936,200.0,0.00027,120]
[337510750,1725727183557,158.05,0.00010959,2]
[337510751,1725727359524,640.66173304,0.0002,120]
[337510761,1725727498488,400.0,0.0002,120]
[337510776,1725727760702,150.0,0.00011229,2]
[337510777,1725727760723,150.0,0.00011229,2]
[337510778,1725727760744,150.0,0.00011229,2]
[337510779,1725727760764,58.96,0.00011229,2]
[337510788,1725727831911,-155.19,0.00013139,2]
[337510789,1725727831920,-3964.15,0.0001314,2]
[337510790,1725727831930,-166.32,0.00013166,2]
[337510791,1725727831940,-2000.0,0.00013186,2]
[337510792,1725727831949,-250.0,0.00013194,2]
[337510793,1725727831958,-240.0,0.0001321,2]
[337510794,1725727831968,-250.0,0.00013265,2]
[337510795,1725727831977,-250.0,0.00013278,2]
[337510796,1725727831986,-200.0,0.00013282,2]
[337510797,1725727831995,-3490.15,0.00013428,2]
[337510798,1725727832006,-6593.71,0.00013428,2]
[337510799,1725727832015,-300.0,0.00013448,2]
[337510800,1725727832024,-23900.0,0.00013449,2]
[337510801,1725727832034,-8845.56,0.00013462,2]
[337510802,1725727832044,-508.96,0.00013493,2]
[337510803,1725727832053,-3120.08,0.00013512,2]
[337510804,1725727832062,-768.83,0.00013609,2]
[337510805,1725727832071,-150.0,0.00013698,2]
[337510806,1725727832081,-150.0,0.00013699,2]
[337510807,1725727832090,-176.3,0.00013699,2]
[337510808,1725727832099,-200.0,0.00013699,2]
[337510809,1725727832109,-2751.0,0.00013699,2]
[337510810,1725727832118,-150.0,0.00013726,2]
[337510811,1725727832127,-855.0,0.0001376,2]
[337510812,1725727832137,-887.81,0.0001376,2]
[337510813,1725727832146,-700.27,0.00013762,2]
[337510814,1725727832155,-499.99,0.00013769,2]
[337510815,1725727832164,-760.0,0.00013808,2]
[337510816,1725727832174,-178.96,0.00013834,2]
[337510817,1725727832183,-240.92,0.00013865,2]
[337510818,1725727832192,-400.0,0.000139,5]
[337510820,1725727832201,-561.14266146,0.0001398,3]
[337510824,1725727832544,-23.79242347,0.0001398,3]
[337510825,1725727832556,-4670.23633505,0.0001398,3]
[337510826,1725727832566,-800.0,0.00014,5]
[337510827,1725727832575,-150.0,0.00014059,2]
[337510828,1725727832584,-1300.0,0.000141,5]
[337510829,1725727832593,-1700.0,0.000142,5]
[337510830,1725727832602,-921.28055295,0.0001423,2]
[337510831,1725727832612,-2200.0,0.000143,5]
[337510832,1725727832621,-183.879101,0.0001438,2]
[337510833,1725727832630,-151.305164,0.0001438,2]
[337510834,1725727832639,-941.36624,0.0001438,2]
[337510835,1725727832648,-154.362379,0.0001438,2]
[337510836,1725727832657,-4000.80652,0.0001438,2]
[337510837,1725727832666,-154.362379,0.0001438,2]
[337510838,1725727832675,-152.714661,0.0001438,2]
[337510839,1725727832685,-181.566195,0.0001438,2]
[337510840,1725727832694,-400.0,0.000144,5]
[337510841,1725727832703,-150.0,0.0001442,2]
[337510842,1725727832712,-400.0,0.000145,5]
[337510843,1725727832721,-941.36624,0.0001456,2]
[337510844,1725727832730,-4000.80652,0.0001456,2]
[337510845,1725727832740,-181.566195,0.0001456,2]
[337510846,1725727832749,-2959.2585,0.00014594,2]
[337510847,1725727832758,-1202.0,0.000146,2]
[337510848,1725727832768,-400.0,0.000146,5]
[337510849,1725727832777,-154.362379,0.0001462,2]
[337510850,1725727832787,-420.43296264,0.00014691,2]
[337510851,1725727832796,-496.92767636,0.00014694,2]
[337510852,1725727832807,-2916.02369508,0.00014694,2]
[337510853,1725727832818,-1094.02,0.00014694,2]
[337510854,1725727832830,-82836.04272856,0.00014694,2]
[337510855,1725727832839,-7500.0,0.00014694,2]
[337510856,1725727832848,-400.0,0.000147,5]
[337510857,1725727832858,-941.36624,0.0001474,2]
[337510858,1725727832867,-4000.80652,0.0001474,2]
[337510859,1725727832880,-181.566195,0.0001474,2]
[337510860,1725727832890,-420.0,0.00014741,2]
[337510861,1725727832899,-150.0,0.0001478,2]
[337510862,1725727832909,-500.0,0.00014794,2]
[337510863,1725727832918,-500.0,0.00014794,2]
[337510864,1725727832927,-500.0,0.00014794,2]
[337510865,1725727832938,-517.72120487,0.00014794,2]
[337510866,1725727832949,-320.96874212,0.00014794,2]
[337510867,1725727832958,-553.23,0.00014794,2]
[337510868,1725727832969,-500.0,0.00014794,2]
[337510869,1725727832979,-500.0,0.00014794,2]
[337510870,1725727832989,-500.0,0.00014794,2]
[337510871,1725727832999,-553.72,0.00014794,2]
[337510872,1725727833008,-268.81279516,0.00014794,2]
[337510873,1725727833018,-500.0,0.00014794,2]
[337510874,1725727833027,-500.0,0.00014794,2]
[337510875,1725727833037,-500.0,0.00014794,2]
[337510876,1725727833047,-500.0,0.00014794,2]
[337510877,1725727833056,-500.0,0.00014794,2]
[337510878,1725727833066,-500.0,0.00014794,2]
[337510879,1725727833075,-500.0,0.00014794,2]
[337510880,1725727833085,-500.0,0.00014794,2]
[337510881,1725727833094,-500.0,0.00014794,2]
[337510882,1725727833104,-518.46,0.00014794,2]
[337510883,1725727833114,-500.0,0.00014794,2]
[337510884,1725727833123,-500.0,0.00014794,2]
[337510885,1725727833133,-500.0,0.00014794,2]
[337510886,1725727833142,-500.0,0.00014794,2]
[337510887,1725727833151,-500.0,0.00014794,2]
[337510888,1725727833161,-500.0,0.00014794,2]
[337510889,1725727833170,-500.0,0.00014794,2]
[337510890,1725727833179,-500.0,0.00014794,2]
[337510891,1725727833188,-500.0,0.00014794,2]
[337510892,1725727833198,-500.0,0.00014794,2]
[337510893,1725727833207,-500.0,0.00014794,2]
[337510894,1725727833216,-500.0,0.00014794,2]
[337510895,1725727833226,-501.61022181,0.00014794,2]
[337510896,1725727833235,-506.12515249,0.00014794,2]
[337510897,1725727833245,-509.84528732,0.00014794,2]
[337510898,1725727833255,-460.66304453,0.00014794,2]
[337510899,1725727833264,-500.0,0.00014794,2]
[337510900,1725727833273,-500.0,0.00014794,2]
[337510901,1725727833282,-500.0,0.00014794,2]
[337510902,1725727833292,-500.0,0.00014794,2]
[337510903,1725727833301,-488.50092594,0.00014794,2]
[337510904,1725727833311,-500.0,0.00014794,2]
[337510905,1725727833330,-500.0,0.00014794,2]
[337510906,1725727833339,-500.0,0.00014794,2]
[337510907,1725727833349,-500.0,0.00014794,2]
[337510908,1725727833358,-500.0,0.00014794,2]
[337510909,1725727833367,-500.0,0.00014794,2]
[337510910,1725727833376,-500.0,0.00014794,2]
[337510911,1725727833387,-500.0,0.00014794,2]
[337510912,1725727833397,-500.0,0.00014794,2]
[337510913,1725727833407,-500.0,0.00014794,2]
[337510914,1725727833416,-500.0,0.00014794,2]
[337510915,1725727833425,-500.0,0.00014794,2]
[337510916,1725727833434,-500.0,0.00014794,2]
[337510917,1725727833443,-500.0,0.00014794,2]
[337510918,1725727833453,-500.0,0.00014794,2]
[337510919,1725727833462,-886.34,0.00014794,2]
[337510920,1725727833472,-886.34,0.00014794,2]
[337510921,1725727833481,-886.34,0.00014794,2]
[337510922,1725727833490,-886.34,0.00014794,2]
[337510923,1725727833500,-500.0,0.00014794,2]
[337510924,1725727833509,-500.0,0.00014794,2]
[337510925,1725727833519,-542.78,0.00014794,2]
[337510926,1725727833528,-500.0,0.00014794,2]
[337510927,1725727833538,-500.0,0.00014794,2]
[337510928,1725727833547,-500.0,0.00014794,2]
[337510929,1725727833556,-500.0,0.00014794,2]
[337510930,1725727833565,-500.0,0.00014794,2]
[337510931,1725727833574,-500.0,0.00014794,2]
[337510932,1725727833583,-500.0,0.00014794,2]
[337510933,1725727833593,-500.0,0.00014794,2]
[337510934,1725727833602,-500.0,0.00014794,2]
[337510935,1725727833611,-500.0,0.00014794,2]
[337510936,1725727833621,-500.0,0.00014794,2]
[337510937,1725727833630,-500.0,0.00014794,2]
[337510938,1725727833639,-626.04,0.00014794,2]
[337510939,1725727833648,-626.04,0.00014794,2]
[337510940,1725727833657,-626.04,0.00014794,2]
[337510941,1725727833666,-626.04,0.00014794,2]
[337510942,1725727833676,-500.0,0.00014794,2]
[337510943,1725727833685,-500.0,0.00014794,2]
[337510944,1725727833694,-500.0,0.00014794,2]
[337510945,1725727833704,-500.0,0.00014794,2]
[337510946,1725727833713,-500.0,0.00014794,2]
[337510947,1725727833722,-500.0,0.00014794,2]
[337510948,1725727833732,-500.0,0.00014794,2]
[337510949,1725727833741,-500.0,0.00014794,2]
[337510950,1725727833751,-500.0,0.00014794,2]
[337510951,1725727833760,-390.35063961,0.00014794,2]
[337510952,1725727833769,-1847.07,0.00014794,2]
[337510953,1725727833778,-1847.07,0.00014794,2]
[337510954,1725727833788,-1847.07,0.00014794,2]
[337510955,1725727833797,-1847.07,0.00014794,2]
[337510956,1725727833806,-500.0,0.00014794,2]
[337510957,1725727833819,-500.0,0.00014794,2]
[337510958,1725727833829,-500.0,0.00014794,2]
[337510959,1725727833839,-500.0,0.00014794,2]
[337510960,1725727833848,-186.34687807,0.00014794,2]
[337510961,1725727833857,-1080.93,0.00014794,2]
[337510962,1725727833867,-1080.93,0.00014794,2]
[337510963,1725727833880,-1080.93,0.00014794,2]
[337510964,1725727833890,-1080.93,0.00014794,2]
[337510965,1725727833899,-500.0,0.00014794,2]
[337510966,1725727833909,-500.0,0.00014794,2]
[337510967,1725727833920,-500.0,0.00014794,2]
[337510968,1725727833929,-500.0,0.00014794,2]
[337510969,1725727833939,-1057.19,0.00014794,2]
[337510970,1725727833948,-1057.19,0.00014794,2]
[337510971,1725727833960,-1057.19,0.00014794,2]
[337510972,1725727833970,-1057.19,0.00014794,2]
[337510973,1725727833979,-500.0,0.00014794,2]
[337510974,1725727833988,-500.0,0.00014794,2]
[337510975,1725727833998,-500.0,0.00014794,2]
[337510976,1725727834007,-500.0,0.00014794,2]
[337510977,1725727834016,-344.11735174,0.00014794,2]
[337510978,1725727834026,-500.0,0.00014794,2]
[337510979,1725727834036,-500.0,0.00014794,2]
[337510980,1725727834045,-500.0,0.00014794,2]
[337510981,1725727834055,-500.0,0.00014794,2]
[337510982,1725727834064,-500.0,0.00014794,2]
[337510983,1725727834073,-500.0,0.00014794,2]
[337510984,1725727834083,-500.0,0.00014794,2]
[337510985,1725727834092,-500.0,0.00014794,2]
[337510986,1725727834102,-500.0,0.00014794,2]
[337510987,1725727834112,-500.0,0.00014794,2]
[337510988,1725727834121,-500.0,0.00014794,2]
[337510989,1725727834131,-500.0,0.00014794,2]
[337510990,1725727834141,-500.0,0.00014794,2]
[337510991,1725727834151,-500.0,0.00014794,2]
[337510992,1725727834160,-500.0,0.00014794,2]
[337510993,1725727834170,-500.0,0.00014794,2]
[337510994,1725727834179,-500.0,0.00014794,2]
[337510995,1725727834189,-500.0,0.00014794,2]
[337510996,1725727834199,-594.22093833,0.00014794,2]
[337510997,1725727834208,-500.0,0.00014794,2]
[337510998,1725727834218,-500.0,0.00014794,2]
[337510999,1725727834227,-500.0,0.00014794,2]
[337511000,1725727834237,-500.0,0.00014794,2]
[337511001,1725727834246,-500.0,0.00014794,2]
[337511002,1725727834256,-500.0,0.00014794,2]
[337511003,1725727834265,-500.0,0.00014794,2]
[337511004,1725727834275,-500.0,0.00014794,2]
[337511005,1725727834284,-178.07262439,0.00014794,2]
[337511006,1725727834294,-577.46,0.00014794,2]
[337511007,1725727834303,-500.0,0.00014794,2]
[337511008,1725727834313,-577.46,0.00014794,2]
[337511009,1725727834322,-500.0,0.00014794,2]
[337511010,1725727834333,-577.46,0.00014794,2]
[337511011,1725727834342,-500.0,0.00014794,2]
[337511012,1725727834351,-577.46,0.00014794,2]
[337511013,1725727834361,-500.0,0.00014794,2]
[337511014,1725727834370,-500.0,0.00014794,2]
[337511015,1725727834380,-500.0,0.00014794,2]
[337511016,1725727834389,-500.0,0.00014794,2]
[337511017,1725727834399,-500.0,0.00014794,2]
[337511018,1725727834408,-500.0,0.00014794,2]
[337511019,1725727834418,-621.91,0.00014794,2]
[337511020,1725727834427,-621.91,0.00014794,2]
[337511021,1725727834437,-500.0,0.00014794,2]
[337511022,1725727834447,-621.91,0.00014794,2]
[337511023,1725727834457,-500.0,0.00014794,2]
[337511024,1725727834466,-621.91,0.00014794,2]
[337511025,1725727834476,-500.0,0.00014794,2]
[337511026,1725727834486,-500.0,0.00014794,2]
[337511027,1725727834495,-500.0,0.00014794,2]
[337511028,1725727834505,-500.0,0.00014794,2]
[337511029,1725727834515,-500.0,0.00014794,2]
[337511030,1725727834525,-500.0,0.00014794,2]
[337511031,1725727834535,-500.0,0.00014794,2]
[337511032,1725727834545,-500.0,0.00014794,2]
[337511033,1725727834554,-500.0,0.00014794,2]
[337511034,1725727834565,-500.0,0.00014794,2]
[337511035,1725727834574,-500.0,0.00014794,2]
[337511036,1725727834584,-500.0,0.00014794,2]
[337511037,1725727834594,-500.0,0.00014794,2]
[337511038,1725727834605,-523.20230557,0.00014794,2]
[337511039,1725727834615,-500.0,0.00014794,2]
[337511040,1725727834624,-500.0,0.00014794,2]
[337511041,1725727834634,-500.0,0.00014794,2]
[337511042,1725727834644,-500.0,0.00014794,2]
[337511043,1725727834654,-500.0,0.00014794,2]
[337511044,1725727834664,-500.0,0.00014794,2]
[337511045,1725727834674,-500.0,0.00014794,2]
[337511046,1725727834684,-500.0,0.00014794,2]
[337511047,1725727834693,-500.0,0.00014794,2]
[337511048,1725727834703,-458.24439087,0.00014794,2]
[337511049,1725727834712,-500.0,0.00014794,2]
[337511050,1725727834723,-500.0,0.00014794,2]
[337511051,1725727834733,-500.0,0.00014794,2]
[337511052,1725727834743,-500.0,0.00014794,2]
[337511053,1725727834753,-500.0,0.00014794,2]
[337511054,1725727834763,-500.0,0.00014794,2]
[337511055,1725727834773,-500.0,0.00014794,2]
[337511056,1725727834783,-500.0,0.00014794,2]
[337511057,1725727834793,-500.0,0.00014794,2]
[337511058,1725727834803,-500.0,0.00014794,2]
[337511059,1725727834813,-500.0,0.00014794,2]
[337511060,1725727834823,-500.0,0.00014794,2]
[337511061,1725727834833,-500.0,0.00014794,2]
[337511062,1725727834843,-500.0,0.00014794,2]
[337511063,1725727834853,-500.0,0.00014794,2]
[337511064,1725727834863,-500.0,0.00014794,2]
[337511065,1725727834873,-500.0,0.00014794,2]
[337511066,1725727834885,-500.0,0.00014794,2]
[337511067,1725727834894,-500.0,0.00014794,2]
[337511068,1725727835034,-500.0,0.00014794,2]
[337511069,1725727835044,-500.0,0.00014794,2]
[337511070,1725727835054,-500.0,0.00014794,2]
[337511071,1725727835064,-500.0,0.00014794,2]
[337511072,1725727835074,-500.0,0.00014794,2]
[337511073,1725727835083,-500.0,0.00014794,2]
[337511074,1725727835093,-500.0,0.00014794,2]
[337511075,1725727835103,-500.0,0.00014794,2]
[337511076,1725727835112,-500.0,0.00014794,2]
[337511077,1725727835121,-500.0,0.00014794,2]
[337511078,1725727835131,-500.0,0.00014794,2]
[337511079,1725727835141,-500.0,0.00014794,2]
[337511080,1725727835150,-500.0,0.00014794,2]
[337511081,1725727835160,-500.0,0.00014794,2]
[337511082,1725727835169,-500.0,0.00014794,2]
[337511083,1725727835180,-500.0,0.00014794,2]
[337511084,1725727835189,-500.0,0.00014794,2]
[337511085,1725727835199,-500.0,0.00014794,2]
[337511086,1725727835208,-402.63955801,0.00014794,2]
[337511087,1725727835218,-500.0,0.00014794,2]
[337511088,1725727835227,-500.0,0.00014794,2]
[337511089,1725727835236,-500.0,0.00014794,2]
[337511090,1725727835246,-500.0,0.00014794,2]
[337511091,1725727835255,-967.74,0.00014794,2]
[337511092,1725727835264,-967.74,0.00014794,2]
[337511093,1725727835273,-967.74,0.00014794,2]
[337511094,1725727835283,-967.74,0.00014794,2]
[337511095,1725727835292,-500.0,0.00014794,2]
[337511096,1725727835301,-500.0,0.00014794,2]
[337511097,1725727835310,-500.0,0.00014794,2]
[337511098,1725727835320,-500.0,0.00014794,2]
[337511099,1725727835329,-500.0,0.00014794,2]
[337511100,1725727835338,-500.0,0.00014794,2]
[337511101,1725727835347,-500.0,0.00014794,2]
[337511102,1725727835356,-500.0,0.00014794,2]
[337511103,1725727835365,-500.0,0.00014794,2]
[337511104,1725727835375,-500.0,0.00014794,2]
[337511105,1725727835385,-500.0,0.00014794,2]
[337511106,1725727835394,-500.0,0.00014794,2]
[337511107,1725727835404,-770.77,0.00014794,2]
[337511108,1725727835413,-770.77,0.00014794,2]
[337511109,1725727835422,-770.77,0.00014794,2]
[337511110,1725727835431,-770.77,0.00014794,2]
[337511111,1725727835440,-500.0,0.00014794,2]
[337511112,1725727835449,-500.0,0.00014794,2]
[337511113,1725727835458,-500.0,0.00014794,2]
[337511114,1725727835467,-500.0,0.00014794,2]
[337511115,1725727835476,-1379.45,0.00014794,2]
[337511116,1725727835485,-1379.45,0.00014794,2]
[337511117,1725727835495,-1379.45,0.00014794,2]
[337511118,1725727835504,-1379.45,0.00014794,2]
[337511119,1725727835512,-500.0,0.00014794,2]
[337511120,1725727835522,-500.0,0.00014794,2]
[337511121,1725727835531,-500.0,0.00014794,2]
[337511122,1725727835540,-500.0,0.00014794,2]
[337511123,1725727835549,-500.0,0.00014794,2]
[337511124,1725727835558,-373.0403943,0.00014794,2]
[337511125,1725727835568,-1134.27,0.00014794,2]
[337511126,1725727835577,-1134.27,0.00014794,2]
[337511127,1725727835586,-500.0,0.00014794,2]
[337511128,1725727835595,-1134.27,0.00014794,2]
[337511129,1725727835604,-1134.27,0.00014794,2]
[337511130,1725727835613,-500.0,0.00014794,2]
[337511131,1725727835622,-500.0,0.00014794,2]
[337511132,1725727835631,-500.0,0.00014794,2]
[337511133,1725727835639,-271.53501657,0.00014794,2]
[337511134,1725727835649,-500.0,0.00014794,2]
[337511135,1725727835658,-317.82268633,0.00014794,2]
[337511136,1725727835667,-1553.0,0.00014794,2]
[337511137,1725727835676,-1553.0,0.00014794,2]
[337511138,1725727835685,-1553.0,0.00014794,2]
[337511139,1725727835695,-1553.0,0.00014794,2]
[337511140,1725727835704,-1683.09,0.00014794,2]
[337511141,1725727835713,-1683.09,0.00014794,2]
[337511142,1725727835722,-1683.09,0.00014794,2]
[337511143,1725727835732,-1683.09,0.00014794,2]
[337511144,1725727835742,-500.0,0.00014794,2]
[337511145,1725727835752,-500.0,0.00014794,2]
[337511146,1725727835763,-625.73,0.00014794,2]
[337511147,1725727835772,-625.73,0.00014794,2]
[337511148,1725727835781,-625.73,0.00014794,2]
[337511149,1725727835790,-625.73,0.00014794,2]
[337511150,1725727835800,-838.94,0.00014794,2]
[337511151,1725727835809,-838.94,0.00014794,2]
[337511152,1725727835819,-500.0,0.00014794,2]
[337511153,1725727835830,-838.94,0.00014794,2]
[337511154,1725727835839,-838.94,0.00014794,2]
[337511155,1725727835848,-500.0,0.00014794,2]
[337511156,1725727835858,-500.0,0.00014794,2]
[337511157,1725727835869,-500.0,0.00014794,2]
[337511158,1725727835884,-163.46970651,0.00014794,2]
[337511159,1725727835895,-500.0,0.00014794,2]
[337511160,1725727835905,-500.0,0.00014794,2]
[337511161,1725727835915,-500.0,0.00014794,2]
[337511162,1725727835925,-500.0,0.00014794,2]
[337511163,1725727835935,-500.0,0.00014794,2]
[337511164,1725727835944,-500.0,0.00014794,2]
[337511165,1725727835954,-500.0,0.00014794,2]
[337511166,1725727835963,-500.0,0.00014794,2]
[337511167,1725727835972,-500.0,0.00014794,2]
[337511168,1725727835981,-500.0,0.00014794,2]
[337511169,1725727835990,-500.0,0.00014794,2]
[337511170,1725727836000,-500.0,0.00014794,2]
[337511171,1725727836009,-500.0,0.00014794,2]
[337511172,1725727836018,-500.0,0.00014794,2]
[337511173,1725727836027,-500.0,0.00014794,2]
[337511174,1725727836036,-500.0,0.00014794,2]
[337511175,1725727836045,-500.0,0.00014794,2]
[337511176,1725727836054,-500.0,0.00014794,2]
[337511177,1725727836063,-500.0,0.00014794,2]
[337511178,1725727836073,-500.0,0.00014794,2]
[337511179,1725727836082,-500.0,0.00014794,2]
[337511180,1725727836091,-500.0,0.00014794,2]
[337511181,1725727836102,-500.0,0.00014794,2]
[337511182,1725727836111,-500.0,0.00014794,2]
[337511183,1725727836121,-500.0,0.00014794,2]
[337511184,1725727836131,-500.0,0.00014794,2]
[337511185,1725727836142,-500.0,0.00014794,2]
[337511186,1725727836151,-500.0,0.00014794,2]
[337511187,1725727836161,-628.76,0.00014794,2]
[337511188,1725727836171,-500.0,0.00014794,2]
[337511189,1725727836183,-628.76,0.00014794,2]
[337511190,1725727836193,-628.76,0.00014794,2]
[337511191,1725727836203,-628.76,0.00014794,2]
[337511192,1725727836213,-500.0,0.00014794,2]
[337511193,1725727836225,-500.0,0.00014794,2]
[337511194,1725727836236,-500.0,0.00014794,2]
[337511195,1725727836245,-500.0,0.00014794,2]
[337511196,1725727836254,-500.0,0.00014794,2]
[337511197,1725727836263,-447.4292712,0.00014794,2]
[337511198,1725727836272,-1048.34,0.00014794,2]
[337511199,1725727836282,-1048.34,0.00014794,2]
[337511200,1725727836292,-500.0,0.00014794,2]
[337511201,1725727836303,-1048.34,0.00014794,2]
[337511202,1725727836313,-500.0,0.00014794,2]
[337511203,1725727836322,-1048.34,0.00014794,2]
[337511204,1725727836332,-500.0,0.00014794,2]
[337511205,1725727836341,-500.0,0.00014794,2]
[337511206,1725727836351,-261.56,0.00014794,2]
[337511207,1725727836361,-500.0,0.00014794,2]
[337511208,1725727836371,-500.0,0.00014794,2]
[337511209,1725727836384,-500.0,0.00014794,2]
[337511210,1725727836393,-500.0,0.00014794,2]
[337511211,1725727836402,-500.0,0.00014794,2]
[337511212,1725727836413,-500.0,0.00014794,2]
[337511213,1725727836423,-500.0,0.00014794,2]
[337511214,1725727836433,-500.0,0.00014794,2]
[337511215,1725727836442,-1039.24,0.00014794,2]
[337511216,1725727836452,-1039.24,0.00014794,2]
[337511217,1725727836462,-1039.24,0.00014794,2]
[337511218,1725727836473,-1039.24,0.00014794,2]
[337511219,1725727836483,-1039.24,0.00014794,2]
[337511220,1725727836493,-500.0,0.00014794,2]
[337511221,1725727836502,-500.0,0.00014794,2]
[337511222,1725727836513,-2972.66,0.00014794,2]
[337511223,1725727836524,-500.0,0.00014794,2]
[337511224,1725727836533,-2972.66,0.00014794,2]
[337511225,1725727836544,-500.0,0.00014794,2]
[337511226,1725727836554,-2972.66,0.00014794,2]
[337511227,1725727836564,-2972.66,0.00014794,2]
[337511228,1725727836583,-500.0,0.00014794,2]
[337511229,1725727836593,-500.0,0.00014794,2]
[337511230,1725727836602,-202.31494136,0.00014794,2]
[337511231,1725727836614,-500.0,0.00014794,2]
[337511232,1725727836623,-500.0,0.00014794,2]
[337511233,1725727836633,-500.0,0.00014794,2]
[337511234,1725727836642,-500.0,0.00014794,2]
[337511235,1725727836651,-500.0,0.00014794,2]
[337511236,1725727836660,-872.69,0.00014794,2]
[337511237,1725727836669,-872.69,0.00014794,2]
[337511238,1725727836678,-872.69,0.00014794,2]
[337511239,1725727836687,-872.69,0.00014794,2]
[337511240,1725727836697,-872.69,0.00014794,2]